lending/lending_fUSD_20250808
["ID","MTS","AMOUNT","RATE_DAILY","PERIOD"]
[377995972,1754656243718,-441.16798175,0.00019,2]
[377995973,1754656243799,-551528.20608625,0.00019,2]
[377995974,1754656243816,-971.36249271,0.00019,2]
[377995975,1754656243828,-823.3067419,0.00019,2]
[377995976,1754656243839,-1263.45825904,0.00019,2]
[377995978,1754656244760,-36528.06255667,0.00019,2]
[377996026,1754656279111,107.09089641,0.00018,6]
[377996027,1754656279136,4892.90910359,0.00018,6]
[377996045,1754656530656,347.7639748,0.00017931,2]
[377996051,1754656574102,1000.0,0.0003013,120]
[377996052,1754656604354,184.38125242,0.00017981,2]
[377996056,1754656635466,1300.91260002,0.00018,2]
[377996062,1754656724128,2000.0,0.0003013,120]
[377996070,1754656784071,308.84,0.00017971,2]
[377996072,1754656882321,1170.66,0.00017925,2]
[377996073,1754656904897,2208.44,0.00017902,2]
[377996074,1754656912395,605.73,0.00017892,2]
[377996075,1754656922642,150.0,0.00017892,2]
[377996076,1754656946504,1000.0,0.00017864,2]
[377996077,1754656951487,2830.36306917,0.00017847,2]
[377996078,1754656951507,15000.0,0.00017847,2]
[377996079,1754656951528,9581.70693083,0.00017847,2]
[377996080,1754657055653,5418.29306917,0.00017824,2]
[377996081,1754657055676,1370.59693083,0.00017824,2]
[377996082,1754657075472,683.94,0.00015068,2]
[377996083,1754657075691,683.94,0.00016655,2]
[377996084,1754657110764,150.0,0.00017359,2]
[377996085,1754657110842,150.0,0.00017552,2]
[377996086,1754657110910,150.0,0.00017745,2]
[377996087,1754657110978,150.0,0.00017938,2]
[377996088,1754657115249,150.89693109,0.00017359,2]
[377996089,1754657115294,150.0,0.00017359,2]
[377996090,1754657115364,150.0,0.00018002,2]
[377996091,1754657115560,150.0,0.0001752,2]
[377996092,1754657115638,150.0,0.0001768,2]
[377996093,1754657115697,150.0,0.00017841,2]
[377996094,1754657115759,150.0,0.00018002,2]
[377996095,1754657116520,150.0,0.00017359,2]
[377996096,1754657116653,268.97,0.00017747,2]
[377996097,1754657120253,150.0,0.00017359,2]
[377996098,1754657120323,150.0,0.00018002,2]
[377996099,1754657121815,150.0,0.00017359,2]
[377996100,1754657121874,150.0,0.000176,2]
[377996101,1754657121949,150.0,0.00017841,2]
[377996102,1754657122905,9441.65613808,0.00018,7]
[377996103,1754657122932,15000.0,0.00018,7]
[377996104,1754657122955,15000.0,0.00018,7]
[377996105,1754657122978,15000.0,0.00018,7]
[377996106,1754657123007,15000.0,0.00018,7]
[377996107,1754657123032,15000.0,0.00018,7]
[377996108,1754657123057,15000.0,0.00018,7]
[377996109,1754657123084,15000.0,0.00018,7]
[377996110,1754657123104,15000.0,0.00018,7]
[377996111,1754657123127,10558.34386192,0.00018,7]
[377996112,1754657126194,271.6,0.00017649,2]
[377996113,1754657126800,150.0,0.00017359,2]
[377996114,1754657127520,150.0,0.00017359,2]
[377996115,1754657132866,150.0,0.00017359,2]
[377996116,1754657132937,150.0,0.00017359,2]
[377996117,1754657133982,150.0,0.00017359,2]
[377996118,1754657136787,150.0,0.00017359,2]
[377996119,1754657137441,150.0,0.00017359,2]
[377996120,1754657137546,153.49621944,0.00017359,2]
[377996121,1754657138204,150.63878865,0.00017359,2]
[377996122,1754657190206,150.0,0.000172,2]
[377996123,1754657223735,2205.77,0.00017636,2]
[377996124,1754657305090,376.0,0.0001766,2]
[377996129,1754657325689,84.15112999,0.00013699,2]
[377996130,1754657325710,204.63887001,0.00013699,2]
[377996131,1754657326475,524.0,0.00017105,2]
[377996132,1754657327697,250.0,0.0001766,2]
[377996135,1754657345722,1769.99,0.00017686,2]
[377996136,1754657355609,201.436215,0.00018,2]
[377996145,1754657412620,456.2,0.00017693,2]
[377996149,1754657431833,-166.43,0.00018021,2]
[377996150,1754657431843,-327.63499999,0.00018029,2]
[377996151,1754657431896,-172.36500001,0.00018029,2]
[377996152,1754657431906,-796.82687043,0.00018031,2]
[377996153,1754657432070,-1035.33312957,0.00018031,2]
[377996154,1754657432079,-150.0,0.00018082,2]
[377996155,1754657432090,-150.0,0.0001813,2]
[377996156,1754657432100,-150.0,0.00018163,2]
[377996157,1754657432109,-76.16975355,0.00018242,2]
[377996158,1754657432121,-607.77024645,0.00018242,2]
[377996159,1754657432130,-344.36918839,0.0001828,2]
[377996160,1754657432140,-674.59388016,0.00018322,2]
[377996161,1754657432154,-525.40611984,0.00018322,2]
[377996162,1754657432163,-300.0,0.00018322,2]
[377996163,1754657432173,-150.0,0.00018323,2]
[377996164,1754657432182,-150.0,0.00018323,2]
[377996165,1754657432192,-150.0,0.00018323,2]
[377996166,1754657432202,-150.99,0.00018323,2]
[377996167,1754657432211,-8499.10285199,0.00018323,2]
[377996168,1754657432281,-529.90673176,0.00018323,2]
[377996169,1754657432292,-864.62041625,0.00018323,2]
[377996171,1754657432302,-2152.83665356,0.00018323,2]
[377996173,1754657432321,-312.13489786,0.00018323,2]
[377996179,1754657432377,-2651.97179946,0.00018323,2]
[377996181,1754657432388,-1033.63361294,0.00018323,2]
[377996183,1754657432415,-3671.30968664,0.00018323,2]
[377996184,1754657432426,-1494.55638822,0.00018323,2]
[377996185,1754657432437,-2254.09715858,0.00018323,2]
[377996208,1754657437833,-2581.75265251,0.00018323,2]
[377996209,1754657438103,-445.46008,0.00018323,2]
[377996316,1754657439882,-131481.77707023,0.00018323,2]
[377996317,1754657439892,-150.0,0.0001838,2]
[377996318,1754657439902,-159.59,0.0001838,2]
[377996319,1754657439911,-150.0,0.00018484,2]
[377996320,1754657439922,-344.3691883,0.00018514,2]
[377996321,1754657439931,-150.0,0.00018516,2]
[377996322,1754657439941,-271.6,0.00018532,2]
[377996323,1754657439950,-150.0,0.00018564,2]
[377996324,1754657439959,-308.84,0.00018645,2]
[377996325,1754657439968,-150.0,0.00018645,2]
[377996326,1754657439978,-150.0,0.00018645,2]
[377996327,1754657439987,-150.0,0.00018645,2]
[377996328,1754657439997,-267.46074303,0.00018651,2]
[377996329,1754657440007,-507.43284117,0.0001866,2]
[377996330,1754657440016,-166.49007333,0.0001866,2]
[377996331,1754657440026,-420.26,0.00018661,2]
[377996332,1754657440035,-35019.8468,0.00018662,2]
[377996333,1754657440045,-150.0,0.00018709,2]
[377996334,1754657440054,-344.3691883,0.00018747,2]
[377996335,1754657440063,-218.84,0.00018749,2]
[377996336,1754657440072,-912.37,0.00018758,2]
[377996337,1754657440082,-721.94,0.00018758,2]
[377996338,1754657440091,-476.86,0.00018758,2]
[377996339,1754657440101,-956.44,0.00018758,2]
[377996340,1754657440110,-623.79,0.00018758,2]
[377996341,1754657440119,-450.95,0.00018758,2]
[377996342,1754657440128,-949.9,0.00018758,2]
[377996343,1754657440138,-400.0,0.00018758,2]
[377996344,1754657440147,-1069.98,0.00018758,2]
[377996345,1754657440159,-807.54,0.00018758,2]
[377996346,1754657440168,-862.17,0.00018758,2]
[377996347,1754657440178,-1559.91,0.00018758,2]
[377996348,1754657440187,-828.25,0.00018758,2]
[377996349,1754657440197,-929.62,0.00018758,2]
[377996350,1754657440206,-400.0,0.00018758,2]
[377996351,1754657440215,-404.6,0.00018758,2]
[377996352,1754657440224,-514.53,0.00018758,2]
[377996353,1754657440234,-400.0,0.00018758,2]
[377996354,1754657440244,-538.72,0.00018758,2]
[377996355,1754657440254,-400.0,0.00018758,2]
[377996356,1754657440262,-319.58462734,0.00018758,2]
[377996357,1754657440272,-657.5,0.00018759,2]
[377996358,1754657440281,-400.0,0.00018759,2]
[377996359,1754657440290,-400.0,0.00018759,2]
[377996360,1754657440299,-400.0,0.00018759,2]
[377996361,1754657440309,-509.12,0.00018759,2]
[377996362,1754657440318,-400.0,0.00018759,2]
[377996363,1754657440328,-400.0,0.00018759,2]
[377996364,1754657440337,-416.97,0.00018759,2]
[377996365,1754657440346,-400.0,0.00018759,2]
[377996366,1754657440356,-405.9,0.00018759,2]
[377996367,1754657440365,-400.0,0.00018759,2]
[377996368,1754657440374,-400.0,0.00018759,2]
[377996369,1754657440383,-400.0,0.00018759,2]
[377996370,1754657440392,-400.0,0.00018759,2]
[377996371,1754657440401,-400.0,0.00018759,2]
[377996372,1754657440411,-483.5,0.00018759,2]
[377996373,1754657440420,-400.0,0.00018759,2]
[377996374,1754657440429,-513.56,0.00018759,2]
[377996375,1754657440438,-505.59,0.00018759,2]
[377996376,1754657440448,-602.01,0.00018759,2]
[377996377,1754657440458,-400.0,0.00018759,2]
[377996378,1754657440467,-400.0,0.00018759,2]
[377996379,1754657440475,-692.64,0.00018759,2]
[377996380,1754657440485,-417.49,0.00018759,2]
[377996381,1754657440494,-401.8,0.00018759,2]
[377996382,1754657440504,-446.12,0.00018759,2]
[377996383,1754657440513,-470.04,0.00018759,2]
[377996384,1754657440522,-532.79,0.00018759,2]
[377996385,1754657440531,-503.11,0.00018759,2]
[377996386,1754657440542,-400.0,0.00018759,2]
[377996387,1754657440551,-533.07,0.00018759,2]
[377996388,1754657440561,-400.0,0.00018759,2]
[377996389,1754657440570,-400.0,0.00018759,2]
[377996390,1754657440580,-623.62,0.00018759,2]
[377996391,1754657440589,-400.0,0.00018759,2]
[377996392,1754657440598,-400.0,0.00018759,2]
[377996393,1754657440609,-400.0,0.00018759,2]
[377996394,1754657440619,-400.0,0.00018759,2]
[377996395,1754657440628,-840.94,0.00018759,2]
[377996396,1754657440638,-400.0,0.00018759,2]
[377996397,1754657440647,-849.25,0.00018759,2]
[377996398,1754657440657,-469.14,0.00018759,2]
[377996399,1754657440666,-665.94,0.00018759,2]
[377996400,1754657440675,-400.0,0.00018759,2]
[377996401,1754657440685,-511.39,0.00018759,2]
[377996402,1754657440694,-415.82,0.00018759,2]
[377996403,1754657440704,-400.0,0.00018759,2]
[377996404,1754657440713,-501.63,0.00018759,2]
[377996405,1754657440722,-400.0,0.00018759,2]
[377996406,1754657440731,-751.28,0.00018759,2]
[377996407,1754657440742,-519.01,0.00018759,2]
[377996408,1754657440755,-400.0,0.00018759,2]
[377996409,1754657440765,-631.74,0.00018759,2]
[377996410,1754657440775,-400.0,0.00018759,2]
[377996411,1754657440785,-587.21,0.00018759,2]
[377996412,1754657440795,-540.47,0.00018759,2]
[377996413,1754657440805,-400.0,0.00018759,2]
[377996414,1754657440814,-400.0,0.00018759,2]
[377996415,1754657440823,-400.0,0.00018759,2]
[377996416,1754657440833,-528.16469845,0.00018759,2]
[377996417,1754657440842,-400.0,0.00018759,2]
[377996418,1754657440852,-590.72,0.00018759,2]
[377996419,1754657440863,-842.23,0.00018759,2]
[377996420,1754657440873,-426.95,0.00018759,2]
[377996421,1754657440882,-400.0,0.00018759,2]
[377996422,1754657440892,-460.49,0.00018759,2]
[377996423,1754657440902,-400.0,0.00018759,2]
[377996424,1754657440911,-400.0,0.00018759,2]
[377996425,1754657440921,-400.0,0.00018759,2]
[377996426,1754657440931,-400.0,0.00018759,2]
[377996427,1754657440940,-400.0,0.00018759,2]
[377996428,1754657440950,-531.68,0.00018759,2]
[377996429,1754657440959,-400.0,0.00018759,2]
[377996430,1754657440969,-400.0,0.00018759,2]
[377996431,1754657440979,-501.78,0.00018759,2]
[377996432,1754657440988,-400.0,0.00018759,2]
[377996433,1754657440997,-400.0,0.00018759,2]
[377996434,1754657441007,-596.2,0.00018759,2]
[377996435,1754657441017,-1327.88,0.00018759,2]
[377996436,1754657441026,-400.0,0.00018759,2]
[377996437,1754657441036,-400.0,0.00018759,2]
[377996438,1754657441045,-400.0,0.00018759,2]
[377996439,1754657441055,-400.0,0.00018759,2]
[377996440,1754657441064,-412.11,0.00018759,2]
[377996441,1754657441074,-400.0,0.00018759,2]
[377996442,1754657441083,-400.0,0.00018759,2]
[377996443,1754657441093,-400.0,0.00018759,2]
[377996444,1754657441103,-400.0,0.00018759,2]
[377996445,1754657441112,-471.6,0.00018759,2]
[377996446,1754657441122,-545.46,0.00018759,2]
[377996447,1754657441134,-414.31,0.00018759,2]
[377996448,1754657441144,-400.0,0.00018759,2]
[377996449,1754657441155,-400.0,0.00018759,2]
[377996450,1754657441166,-491.98,0.00018759,2]
[377996451,1754657441175,-651.57,0.00018759,2]
[377996452,1754657441184,-494.68,0.00018759,2]
[377996453,1754657441193,-420.26,0.00018759,2]
[377996454,1754657441203,-400.0,0.00018759,2]
[377996455,1754657441213,-542.52260634,0.00018759,2]
[377996456,1754657441222,-400.0,0.00018759,2]
[377996457,1754657441234,-400.0,0.00018759,2]
[377996458,1754657441243,-400.0,0.00018759,2]
[377996459,1754657441253,-400.0,0.00018759,2]
[377996460,1754657441262,-380.27916008,0.00018759,2]
[377996461,1754657441272,-400.0,0.00018759,2]
[377996462,1754657441282,-1088.94,0.00018759,2]
[377996463,1754657441291,-400.0,0.00018759,2]
[377996464,1754657441300,-759.95,0.00018759,2]
[377996465,1754657441309,-400.0,0.00018759,2]
[377996466,1754657441319,-550.27,0.00018759,2]
[377996467,1754657441328,-400.0,0.00018759,2]
[377996468,1754657441337,-548.47,0.00018759,2]
[377996469,1754657441347,-773.39,0.00018759,2]
[377996470,1754657441356,-596.68,0.00018759,2]
[377996471,1754657441366,-400.0,0.00018759,2]
[377996472,1754657441375,-410.22,0.00018759,2]
[377996473,1754657441385,-728.66,0.00018759,2]
[377996474,1754657441395,-705.52,0.00018759,2]
[377996475,1754657441404,-400.0,0.00018759,2]
[377996476,1754657441413,-670.8,0.00018759,2]
[377996477,1754657441423,-400.0,0.00018759,2]
[377996478,1754657441432,-400.0,0.00018759,2]
[377996479,1754657441441,-668.49,0.00018759,2]
[377996480,1754657441451,-400.0,0.00018759,2]
[377996481,1754657441460,-400.0,0.00018759,2]
[377996482,1754657441470,-511.44,0.00018759,2]
[377996483,1754657441479,-400.0,0.00018759,2]
[377996484,1754657441488,-400.0,0.00018759,2]
[377996485,1754657441497,-400.0,0.00018759,2]
[377996486,1754657441506,-755.46,0.00018759,2]
[377996487,1754657441515,-400.0,0.00018759,2]
[377996488,1754657441524,-400.0,0.00018759,2]
[377996489,1754657441535,-400.0,0.00018759,2]
[377996490,1754657441544,-486.53,0.00018759,2]
[377996491,1754657441554,-400.0,0.00018759,2]
[377996492,1754657441563,-400.0,0.00018759,2]
[377996493,1754657441573,-463.16,0.00018759,2]
[377996494,1754657441583,-616.75,0.00018759,2]
[377996495,1754657441592,-400.0,0.00018759,2]
[377996496,1754657441601,-473.57,0.00018759,2]
[377996497,1754657441614,-400.0,0.00018759,2]
[377996498,1754657441624,-400.0,0.00018759,2]
[377996499,1754657441634,-507.17,0.00018759,2]
[377996500,1754657441645,-400.0,0.00018759,2]
[377996501,1754657441655,-400.0,0.00018759,2]
[377996502,1754657441665,-586.21,0.00018759,2]
[377996503,1754657441676,-466.92894023,0.00018759,2]
[377996504,1754657441687,-400.0,0.00018759,2]
[377996505,1754657441698,-400.0,0.00018759,2]
[377996506,1754657441708,-389.19737793,0.00018759,2]
[377996507,1754657441719,-530.59,0.00018759,2]
[377996508,1754657441730,-400.0,0.00018759,2]
[377996509,1754657441742,-400.0,0.00018759,2]
[377996510,1754657441753,-400.0,0.00018759,2]
[377996511,1754657441763,-400.0,0.00018759,2]
[377996512,1754657441773,-536.11,0.00018759,2]
[377996513,1754657441785,-400.0,0.00018759,2]
[377996514,1754657441796,-400.0,0.00018759,2]
[377996515,1754657441808,-400.0,0.00018759,2]
[377996516,1754657441819,-400.0,0.00018759,2]
[377996517,1754657441831,-400.0,0.00018759,2]
[377996518,1754657441842,-400.0,0.00018759,2]
[377996519,1754657441852,-431.92,0.00018759,2]
[377996520,1754657441865,-400.0,0.00018759,2]
[377996521,1754657441875,-523.86,0.00018759,2]
[377996522,1754657441884,-400.0,0.00018759,2]
[377996523,1754657441894,-400.0,0.00018759,2]
[377996524,1754657441905,-400.0,0.00018759,2]
[377996525,1754657441915,-602.78,0.00018759,2]
[377996526,1754657441925,-400.0,0.00018759,2]
[377996527,1754657441935,-602.01,0.00018759,2]
[377996528,1754657441945,-400.0,0.00018759,2]
[377996529,1754657441955,-400.0,0.00018759,2]
[377996530,1754657441964,-400.0,0.00018759,2]
[377996531,1754657441974,-736.23,0.00018759,2]
[377996532,1754657441983,-400.0,0.00018759,2]
[377996533,1754657441992,-400.44,0.00018759,2]
[377996534,1754657442001,-400.0,0.00018759,2]
[377996535,1754657442010,-400.0,0.00018759,2]
[377996536,1754657442020,-400.0,0.00018759,2]
[377996537,1754657442029,-336.22400934,0.00018759,2]
[377996538,1754657442039,-589.41,0.00018759,2]
[377996539,1754657442048,-400.0,0.00018759,2]
[377996540,1754657442058,-400.0,0.00018759,2]
[377996541,1754657442067,-400.0,0.00018759,2]
[377996542,1754657442077,-400.0,0.00018759,2]
[377996543,1754657442087,-400.0,0.00018759,2]
[377996544,1754657442096,-400.0,0.00018759,2]
[377996545,1754657442107,-915.12,0.00018759,2]
[377996546,1754657442117,-554.81,0.00018759,2]
[377996547,1754657442127,-400.0,0.00018759,2]
[377996548,1754657442138,-574.64,0.00018759,2]
[377996549,1754657442148,-519.97,0.00018759,2]
[377996550,1754657442162,-400.0,0.00018759,2]
[377996551,1754657442172,-590.0,0.00018759,2]
[377996552,1754657442182,-400.0,0.00018759,2]
[377996553,1754657442192,-400.0,0.00018759,2]
[377996554,1754657442202,-400.0,0.00018759,2]
[377996555,1754657442212,-400.0,0.00018759,2]
[377996556,1754657442222,-453.27,0.00018759,2]
[377996557,1754657442233,-400.0,0.00018759,2]
[377996558,1754657442242,-400.0,0.00018759,2]
[377996559,1754657442253,-439.29,0.00018759,2]
[377996560,1754657442263,-400.0,0.00018759,2]
[377996561,1754657442272,-415.57,0.00018759,2]
[377996562,1754657442281,-400.0,0.00018759,2]
[377996563,1754657442291,-893.25,0.00018759,2]
[377996564,1754657442300,-459.04311897,0.00018759,2]
[377996565,1754657442310,-400.0,0.00018759,2]
[377996566,1754657442320,-516.45,0.00018759,2]
[377996567,1754657442330,-400.0,0.00018759,2]
[377996568,1754657442340,-449.67,0.00018759,2]
[377996569,1754657442349,-400.0,0.00018759,2]
[377996570,1754657442360,-1000.0,0.00018759,2]
[377996571,1754657442369,-400.0,0.00018759,2]
[377996572,1754657442378,-400.0,0.00018759,2]
[377996573,1754657442388,-234.50591534,0.00018759,2]
[377996574,1754657442398,-400.0,0.00018759,2]
[377996575,1754657442408,-400.0,0.00018759,2]
[377996576,1754657442418,-400.0,0.00018759,2]
[377996577,1754657442428,-400.0,0.00018759,2]
[377996578,1754657442438,-770.02,0.00018759,2]
[377996579,1754657442449,-482.06,0.00018759,2]
[377996580,1754657442460,-400.0,0.00018759,2]
[377996581,1754657442470,-611.27,0.00018759,2]
[377996582,1754657442481,-400.0,0.00018759,2]
[377996583,1754657442491,-790.96,0.00018759,2]
[377996584,1754657442501,-476.93,0.0001876,2]
[377996585,1754657442511,-400.0,0.0001876,2]
[377996586,1754657442522,-400.0,0.0001876,2]
[377996588,1754657442531,-400.0,0.0001876,2]
[377996590,1754657442541,-411.14,0.0001876,2]
[377996591,1754657442551,-400.0,0.0001876,2]
[377996592,1754657442561,-400.0,0.0001876,2]
[377996593,1754657442572,-400.0,0.0001876,2]
[377996594,1754657442582,-400.0,0.0001876,2]
[377996595,1754657442592,-535.76,0.0001876,2]
[377996596,1754657442603,-400.0,0.0001876,2]
[377996597,1754657442614,-539.52,0.0001876,2]
[377996598,1754657442624,-400.0,0.0001876,2]
[377996599,1754657442634,-400.0,0.0001876,2]
[377996600,1754657442645,-400.0,0.0001876,2]
[377996601,1754657442655,-400.0,0.0001876,2]
[377996602,1754657442665,-400.0,0.0001876,2]
[377996603,1754657442674,-400.0,0.0001876,2]
[377996604,1754657442685,-452.85,0.0001876,2]
[377996605,1754657442696,-408.03,0.0001876,2]
[377996606,1754657442707,-400.0,0.0001876,2]
[377996607,1754657442718,-400.0,0.0001876,2]
[377996608,1754657442729,-400.0,0.0001876,2]
[377996609,1754657442739,-400.0,0.0001876,2]
[377996610,1754657442750,-400.0,0.0001876,2]
[377996611,1754657442762,-400.0,0.0001876,2]
[377996612,1754657442773,-400.0,0.0001876,2]
[377996614,1754657442784,-400.0,0.0001876,2]
[377996616,1754657442794,-400.0,0.0001876,2]
[377996617,1754657442804,-616.68,0.0001876,2]
[377996618,1754657442814,-400.0,0.0001876,2]
[377996619,1754657442824,-475.43,0.0001876,2]
[377996620,1754657442835,-400.0,0.0001876,2]
[377996621,1754657442845,-400.0,0.0001876,2]
[377996622,1754657442855,-400.0,0.0001876,2]
[377996623,1754657442866,-576.06,0.0001876,2]
[377996624,1754657442876,-400.0,0.0001876,2]
[377996625,1754657442887,-400.0,0.0001876,2]
[377996626,1754657442897,-400.0,0.0001876,2]
[377996627,1754657442907,-400.0,0.0001876,2]
[377996628,1754657442917,-400.0,0.0001876,2]
[377996629,1754657442928,-400.0,0.0001876,2]
[377996630,1754657442938,-400.0,0.0001876,2]
[377996631,1754657442949,-400.0,0.0001876,2]
[377996632,1754657442959,-551.74,0.0001876,2]
[377996633,1754657442969,-400.0,0.0001876,2]
[377996634,1754657442980,-448.78,0.0001876,2]
[377996635,1754657442991,-400.0,0.0001876,2]
[377996636,1754657443001,-400.0,0.0001876,2]
[377996637,1754657443011,-400.0,0.0001876,2]
[377996638,1754657443022,-400.0,0.0001876,2]
[377996639,1754657443032,-420.51,0.0001876,2]
[377996640,1754657443043,-400.0,0.0001876,2]
[377996641,1754657443054,-400.0,0.0001876,2]
[377996642,1754657443064,-400.0,0.0001876,2]
[377996643,1754657443074,-719.59,0.0001876,2]
[377996644,1754657443084,-400.0,0.0001876,2]
[377996645,1754657443094,-599.9,0.0001876,2]
[377996646,1754657443104,-400.0,0.0001876,2]
[377996647,1754657443115,-581.62,0.0001876,2]
[377996648,1754657443124,-400.0,0.0001876,2]
[377996649,1754657443135,-462.32,0.0001876,2]
[377996650,1754657443145,-404.79001757,0.0001876,2]
[377996651,1754657443155,-400.0,0.0001876,2]
[377996652,1754657443165,-400.0,0.0001876,2]
[377996653,1754657443178,-438.02,0.0001876,2]
[377996654,1754657443190,-476.97,0.0001876,2]
[377996655,1754657443200,-400.0,0.0001876,2]
[377996656,1754657443210,-1083.71,0.0001876,2]
[377996657,1754657443220,-437.16,0.0001876,2]
[377996658,1754657443230,-400.0,0.0001876,2]
[377996659,1754657443241,-544.12,0.0001876,2]
[377996660,1754657443251,-183.89163771,0.0001876,2]
[377996661,1754657443262,-400.0,0.0001876,2]
[377996662,1754657443272,-400.0,0.0001876,2]
[377996663,1754657443283,-400.0,0.0001876,2]
[377996664,1754657443292,-670.17,0.0001876,2]
[377996665,1754657443302,-400.0,0.0001876,2]
[377996666,1754657443312,-512.7,0.0001876,2]
[377996667,1754657443322,-220.96757,0.0001876,2]
[377996668,1754657443332,-400.0,0.0001876,2]
[377996669,1754657443343,-400.0,0.0001876,2]
[377996670,1754657443353,-255.547552,0.0001876,2]
[377996671,1754657443363,-400.0,0.0001876,2]
[377996672,1754657443373,-551.82,0.0001876,2]
[377996673,1754657443384,-400.0,0.0001876,2]
[377996674,1754657443394,-769.2,0.0001876,2]
[377996675,1754657443404,-195.134052,0.0001876,2]
[377996676,1754657443415,-400.0,0.0001876,2]
[377996677,1754657443426,-400.0,0.0001876,2]
[377996678,1754657443435,-400.0,0.0001876,2]
[377996679,1754657443447,-444.63,0.0001876,2]
[377996680,1754657443459,-400.0,0.0001876,2]
[377996681,1754657443470,-461.55,0.0001876,2]
[377996682,1754657443481,-3459.4,0.0001876,2]
[377996683,1754657443491,-400.0,0.0001876,2]
[377996684,1754657443502,-733.12,0.0001876,2]
[377996685,1754657443512,-400.0,0.0001876,2]
[377996686,1754657443523,-588.47,0.0001876,2]
[377996687,1754657443533,-400.0,0.0001876,2]
[377996688,1754657443543,-400.0,0.0001876,2]
[377996689,1754657443553,-400.0,0.0001876,2]
[377996690,1754657443564,-400.0,0.0001876,2]
[377996691,1754657443574,-400.0,0.0001876,2]
[377996692,1754657443584,-400.0,0.0001876,2]
[377996693,1754657443595,-400.0,0.0001876,2]
[377996694,1754657443605,-400.0,0.0001876,2]
[377996695,1754657443615,-591.43,0.0001876,2]
[377996696,1754657443626,-697.97,0.0001876,2]
[377996697,1754657443636,-606.04,0.0001876,2]
[377996698,1754657443646,-400.0,0.0001876,2]
[377996699,1754657443656,-400.0,0.0001876,2]
[377996700,1754657443665,-400.0,0.0001876,2]
[377996701,1754657443675,-400.0,0.0001876,2]
[377996702,1754657443685,-400.0,0.0001876,2]
[377996703,1754657443695,-400.0,0.0001876,2]
[377996704,1754657443704,-400.0,0.0001876,2]
[377996705,1754657443714,-479.27,0.0001876,2]
[377996706,1754657443724,-400.0,0.0001876,2]
[377996707,1754657443733,-689.17,0.0001876,2]
[377996708,1754657443743,-518.94,0.0001876,2]
[377996709,1754657443753,-1552.5,0.0001876,2]
[377996710,1754657443763,-400.0,0.0001876,2]
[377996711,1754657443773,-498.02,0.0001876,2]
[377996712,1754657443783,-400.0,0.0001876,2]
[377996713,1754657443794,-400.0,0.0001876,2]
[377996714,1754657443804,-450.42779657,0.0001876,2]
[377996715,1754657443814,-400.0,0.0001876,2]